[Event "MCR rapid mládeže 2023 U16"]
[Site "Harachov, Czech Republic"]
[Date "2023.09.10"]
[Round "8.30"]
[White "Fadrny, Jachym"]
[Black "Trejbal, Jindrich"]
[Result "1-0"]
[TimeControl "20min+5s/move"]
[WhiteElo "1347"]
[BlackElo "1088"]

1. e4 {[%clk 00:20:06]} {[%emt 00:00:03]} e5 {[%clk 00:20:03]} {[%emt
00:00:07]} 2. Nf3 {[%clk 00:20:09]} {[%emt 00:00:03]} Nf6 {[%clk 00:20:00]}
{[%emt 00:00:07]} 3. Nxe5 {[%clk 00:19:57]} {[%emt 00:00:17]} d6 {[%clk
00:19:59]} {[%emt 00:00:06]} 4. Nf3 {[%clk 00:19:41]} {[%emt 00:00:21]} Nxe4
{[%clk 00:19:46]} {[%emt 00:00:18]} 5. d3 {[%clk 00:19:41]} {[%emt 00:00:04]}
Nf6 {[%clk 00:19:14]} {[%emt 00:00:38]} 6. Bg5 {[%clk 00:19:38]} {[%emt
00:00:08]} Be7 {[%clk 00:18:12]} {[%emt 00:01:06]} 7. Be2 {[%clk 00:19:33]}
{[%emt 00:00:10]} O-O {[%clk 00:17:11]} {[%emt 00:01:07]} 8. O-O {[%clk
00:19:34]} {[%emt 00:00:04]} h6 {[%clk 00:17:12]} {[%emt 00:00:04]} 9. Bh4
{[%clk 00:19:13]} {[%emt 00:00:26]} Nc6 {[%clk 00:16:35]} {[%emt 00:00:42]} 10.
Nc3 {[%clk 00:19:08]} {[%emt 00:00:09]} Be6 {[%clk 00:16:27]} {[%emt 00:00:15]}
11. d4 {[%clk 00:18:37]} {[%emt 00:00:35]} d5 {[%clk 00:16:16]} {[%emt
00:00:16]} 12. Ne5 {[%clk 00:17:59]} {[%emt 00:00:42]} Nh7 {[%clk 00:10:48]}
{[%emt 00:05:34]} 13. Nxc6 {[%clk 00:17:38]} {[%emt 00:00:26]} bxc6 {[%clk
00:10:46]} {[%emt 00:00:07]} 14. Bxe7 {[%clk 00:17:22]} {[%emt 00:00:20]} Qxe7
{[%clk 00:10:37]} {[%emt 00:00:15]} 15. Re1 {[%clk 00:17:21]} {[%emt 00:00:05]}
Qd6 {[%clk 00:09:25]} {[%emt 00:01:18]} 16. Na4 {[%clk 00:16:22]} {[%emt
00:01:05]} Nf6 {[%clk 00:08:13]} {[%emt 00:01:17]} 17. Nc5 {[%clk 00:15:34]}
{[%emt 00:00:52]} Ne4 {[%clk 00:07:33]} {[%emt 00:00:45]} 18. Nxe4 {[%clk
00:15:21]} {[%emt 00:00:18]} dxe4 {[%clk 00:07:37]} {[%emt 00:00:02]} 19. Bf1
{[%clk 00:15:16]} {[%emt 00:00:10]} f5 {[%clk 00:07:20]} {[%emt 00:00:21]} 20.
b3 {[%clk 00:13:19]} {[%emt 00:02:02]} Rf6 {[%clk 00:07:00]} {[%emt 00:00:25]}
21. c3 {[%clk 00:10:42]} {[%emt 00:02:42]} Kh7 {[%clk 00:05:24]} {[%emt
00:01:41]} 22. Qc2 {[%clk 00:10:41]} {[%emt 00:00:05]} Rg8 {[%clk 00:04:58]}
{[%emt 00:00:31]} 23. Rad1 {[%clk 00:08:26]} {[%emt 00:02:20]} g5 {[%clk
00:04:11]} {[%emt 00:00:54]} 24. c4 {[%clk 00:07:45]} {[%emt 00:00:45]} Rfg6
{[%clk 00:03:33]} {[%emt 00:00:43]} 25. Rd2 {[%clk 00:05:07]} {[%emt 00:02:44]}
g4 {[%clk 00:03:15]} {[%emt 00:00:23]} 26. g3 {[%clk 00:04:34]} {[%emt
00:00:38]} Rg5 {[%clk 00:02:08]} {[%emt 00:01:12]} 27. Red1 {[%clk 00:04:09]}
{[%emt 00:00:29]} Bf7 {[%clk 00:01:43]} {[%emt 00:00:31]} 28. d5 {[%clk
00:03:52]} {[%emt 00:00:21]} c5 {[%clk 00:01:34]} {[%emt 00:00:15]} 29. Qb2
{[%clk 00:02:56]} {[%emt 00:01:00]} R8g6 {[%clk 00:01:25]} {[%emt 00:00:14]} 30.
Qc2 {[%clk 00:02:15]} {[%emt 00:00:46]} Rg7 {[%emt 00:00:09]} 31. a3 {[%clk
00:02:11]} {[%emt 00:00:09]} R5g6 {[%clk 00:00:53]} {[%emt 00:00:33]} 32. b4
{[%clk 00:02:07]} {[%emt 00:00:09]} Be8 {[%clk 00:00:43]} {[%emt 00:00:15]} 33.
b5 {[%clk 00:01:38]} {[%emt 00:00:34]} Rd7 {[%clk 00:00:44]} {[%emt 00:00:04]}
34. Bg2 {[%clk 00:01:34]} {[%emt 00:00:09]} Qb6 {[%clk 00:00:45]} {[%emt
00:00:04]} 35. Qc3 {[%clk 00:01:16]} {[%emt 00:00:23]} Qf6 {[%clk 00:00:46]}
{[%emt 00:00:04]} 36. Qb3 {[%clk 00:01:16]} {[%emt 00:00:06]} Qb6 {[%clk
00:00:45]} {[%emt 00:00:05]} 37. a4 {[%clk 00:01:14]} {[%emt 00:00:08]} Qa5
{[%clk 00:00:46]} {[%emt 00:00:03]} 38. Qa3 {[%clk 00:01:07]} {[%emt 00:00:12]}
Qb6 {[%clk 00:00:41]} {[%emt 00:00:11]} 39. a5 {[%clk 00:01:10]} {[%emt
00:00:01]} Qd6 {[%clk 00:00:45]} 40. Rb1 {[%clk 00:00:59]} {[%emt 00:00:17]}
Bf7 {[%clk 00:00:43]} {[%emt 00:00:07]} 41. Rdb2 {[%clk 00:00:58]} {[%emt
00:00:06]} Qe7 {[%clk 00:00:30]} {[%emt 00:00:18]} 42. b6 {[%clk 00:00:48]}
{[%emt 00:00:16]} cxb6 {[%clk 00:00:28]} {[%emt 00:00:07]} 43. axb6 {[%clk
00:00:51]} {[%emt 00:00:02]} axb6 {[%clk 00:00:28]} {[%emt 00:00:05]} 44. Rxb6
{[%clk 00:00:52]} {[%emt 00:00:04]} Rxb6 {[%clk 00:00:28]} {[%emt 00:00:05]} 45.
Rxb6 {[%clk 00:00:55]} {[%emt 00:00:02]} Ra7 {[%clk 00:00:26]} {[%emt
00:00:07]} 46. Qb2 {[%clk 00:00:38]} {[%emt 00:00:21]} Be8 {[%clk 00:00:23]}
{[%emt 00:00:08]} 47. Qc1 {[%clk 00:00:30]} {[%emt 00:00:12]} Qg7 {[%clk
00:00:24]} {[%emt 00:00:04]} 48. Qe3 {[%clk 00:00:25]} {[%emt 00:00:10]} Ra1+
{[%clk 00:00:23]} {[%emt 00:00:06]} 49. Bf1 {[%clk 00:00:29]} {[%emt 00:00:01]}
Qa7 {[%clk 00:00:22]} {[%emt 00:00:07]} 50. Qxh6+ {[%clk 00:00:31]} {[%emt
00:00:03]} Kg8 {[%clk 00:00:24]} {[%emt 00:00:04]} 51. Qe6+ {[%clk 00:00:32]}
{[%emt 00:00:04]} Bf7 {[%clk 00:00:26]} {[%emt 00:00:02]} 52. Qc8+ {[%clk
00:00:34]} {[%emt 00:00:03]} Kg7 {[%clk 00:00:27]} {[%emt 00:00:04]} 53. Rb8
{[%clk 00:00:28]} {[%emt 00:00:12]} Qa5 {[%clk 00:00:17]} {[%emt 00:00:15]} 54.
Qf8+ {[%clk 00:00:30]} {[%emt 00:00:02]} Kf6 {[%clk 00:00:19]} {[%emt
00:00:03]} 55. Qd6+ {[%clk 00:00:29]} {[%emt 00:00:05]} Kg7 {[%clk 00:00:18]}
{[%emt 00:00:06]} 56. Qe5+ {[%clk 00:00:33]} {[%emt 00:00:02]} Kg6 {[%clk
00:00:20]} {[%emt 00:00:03]} 57. Rc8 {[%clk 00:00:21]} Qa6 {[%clk 00:00:20]} 58.
Rc6+ {[%clk 00:00:21]} Qa5 {[%clk 00:00:19]} 59. Rc7 {[%clk 00:00:18]} {[%emt
00:01:39]} Qa6 {[%clk 00:00:11]} {[%emt 00:00:13]} 60. Rc6+ {[%clk 00:00:22]}
Qxc6 {[%clk 00:00:13]} {[%emt 00:00:03]} 61. dxc6 {[%clk 00:00:26]} {[%emt
00:00:02]} Rc1 {[%clk 00:00:11]} {[%emt 00:00:07]} 62. c7 {[%clk 00:00:29]}
{[%emt 00:00:01]} Bxc4 {[%clk 00:00:13]} {[%emt 00:00:03]} 63. Qd6+ {[%clk
00:00:12]} {[%emt 00:00:23]} Kg5 {[%clk 00:00:14]} {[%emt 00:00:03]} 64. Qd2+
{[%clk 00:00:15]} {[%emt 00:00:01]} Kf6 {[%clk 00:00:18]} {[%emt 00:00:02]} 65.
Qxc1 {[%clk 00:00:19]} {[%emt 00:00:02]} Ke7 {[%clk 00:00:22]} 66. Qxc4 {[%clk
00:00:23]} {[%emt 00:00:01]} Kd7 {[%clk 00:00:26]} {[%emt 00:00:01]} 67. Qxc5
{[%clk 00:00:26]} {[%emt 00:00:02]} Kc8 {[%clk 00:00:29]} {[%emt 00:00:01]} 68.
Ba6+ {[%clk 00:00:29]} {[%emt 00:00:03]} Kd7 {[%clk 00:00:33]} {[%emt
00:00:02]} 69. c8=Q# {[%clk 00:00:28]} {[%emt 00:00:05]} 1-0

[Event "MCR rapid mládeže 2023 U16"]
[Site "Harachov, Czech Republic"]
[Date "2023.09.10"]
[Round "8.31"]
[White "Bucek, Vit"]
[Black "Gernert , Tomas"]
[Result "0-1"]
[TimeControl "20min+5s/move"]
[WhiteElo "1283"]
[BlackElo "1236"]

1. e4 {[%clk 00:20:07]} {[%emt 00:00:01]} c5 {[%clk 00:20:09]} {[%emt
00:00:02]} 2. Nf3 {[%clk 00:20:10]} {[%emt 00:00:02]} Nc6 {[%clk 00:20:11]}
{[%emt 00:00:03]} 3. d4 {[%clk 00:20:13]} {[%emt 00:00:02]} cxd4 {[%clk
00:20:15]} {[%emt 00:00:01]} 4. Nxd4 {[%clk 00:20:16]} {[%emt 00:00:02]} g6
{[%clk 00:20:18]} {[%emt 00:00:02]} 5. Nc3 {[%clk 00:20:19]} {[%emt 00:00:02]}
Bg7 {[%clk 00:20:22]} {[%emt 00:00:01]} 6. Be3 {[%clk 00:20:22]} {[%emt
00:00:01]} Nf6 {[%clk 00:20:22]} {[%emt 00:00:05]} 7. Bc4 {[%clk 00:20:24]}
{[%emt 00:00:03]} d6 {[%clk 00:20:14]} {[%emt 00:00:13]} 8. f3 {[%clk
00:20:21]} {[%emt 00:00:09]} Qb6 {[%clk 00:20:10]} {[%emt 00:00:09]} 9. Bb3
{[%clk 00:16:46]} {[%emt 00:03:40]} Nxe4 {[%clk 00:19:18]} {[%emt 00:00:56]} 10.
Nf5 {[%clk 00:12:40]} {[%emt 00:04:07]} Bxc3+ {[%clk 00:19:19]} {[%emt
00:00:09]} 11. bxc3 {[%clk 00:12:26]} {[%emt 00:00:19]} Nxc3 {[%clk 00:19:10]}
{[%emt 00:00:14]} 12. Bxb6 {[%clk 00:12:13]} {[%emt 00:00:18]} Nxd1 {[%clk
00:19:13]} {[%emt 00:00:02]} 13. Rxd1 {[%clk 00:11:49]} {[%emt 00:00:29]} Bxf5
{[%clk 00:19:10]} {[%emt 00:00:08]} 14. Bd4 {[%clk 00:11:30]} {[%emt 00:00:23]}
Nxd4 {[%clk 00:19:08]} {[%emt 00:00:07]} 15. Rxd4 {[%clk 00:11:33]} {[%emt
00:00:03]} O-O {[%clk 00:18:53]} {[%emt 00:00:20]} 16. g4 {[%clk 00:11:19]}
{[%emt 00:00:17]} Bd7 {[%clk 00:18:54]} {[%emt 00:00:05]} 17. h4 {[%clk
00:11:16]} {[%emt 00:00:08]} Bc6 {[%clk 00:18:57]} {[%emt 00:00:03]} 18. Kf2
{[%clk 00:10:47]} {[%emt 00:00:32]} Rad8 {[%clk 00:18:21]} {[%emt 00:00:43]} 19.
h5 {[%clk 00:10:32]} {[%emt 00:00:18]} g5 {[%clk 00:18:12]} {[%emt 00:00:15]}
20. Bd5 {[%clk 00:10:20]} {[%emt 00:00:16]} e5 {[%clk 00:17:56]} {[%emt
00:00:23]} 21. Rdd1 {[%clk 00:10:22]} {[%emt 00:00:03]} Bxd5 {[%clk 00:17:59]}
{[%emt 00:00:02]} 22. Rxd5 {[%clk 00:10:23]} {[%emt 00:00:04]} f5 {[%clk
00:18:02]} {[%emt 00:00:02]} 23. gxf5 {[%clk 00:10:06]} {[%emt 00:00:22]} Rxf5
{[%clk 00:18:05]} {[%emt 00:00:02]} 24. Rg1 {[%clk 00:09:48]} {[%emt 00:00:20]}
h6 {[%clk 00:18:07]} {[%emt 00:00:07]} 25. Kg3 {[%clk 00:09:17]} {[%emt
00:00:32]} Kf7 {[%clk 00:18:08]} {[%emt 00:00:06]} 26. Rgd1 {[%clk 00:09:09]}
{[%emt 00:00:13]} Ke6 {[%clk 00:17:56]} {[%emt 00:00:18]} 27. Rb5 {[%clk
00:09:00]} {[%emt 00:00:12]} b6 {[%clk 00:17:58]} {[%emt 00:00:06]} 28. Rb3
{[%clk 00:08:26]} {[%emt 00:00:37]} d5 {[%clk 00:17:46]} {[%emt 00:00:18]} 29.
Ra3 {[%clk 00:07:41]} {[%emt 00:00:49]} Rd7 {[%clk 00:17:43]} {[%emt 00:00:09]}
30. Rad3 {[%clk 00:07:25]} {[%emt 00:00:18]} Rf4 {[%clk 00:17:44]} {[%emt
00:00:07]} 31. Rh1 {[%clk 00:06:54]} {[%emt 00:00:32]} Rc4 {[%clk 00:17:31]}
{[%emt 00:00:21]} 32. Rd2 {[%clk 00:06:37]} {[%emt 00:00:21]} Rdc7 {[%clk
00:17:30]} {[%emt 00:00:08]} 33. Rc1 {[%clk 00:06:22]} {[%emt 00:00:19]} Ra4
{[%clk 00:17:19]} {[%emt 00:00:17]} 34. Ra1 {[%clk 00:06:17]} {[%emt 00:00:09]}
Ra3 {[%clk 00:17:17]} {[%emt 00:00:08]} 35. Rd3 {[%clk 00:05:22]} {[%emt
00:00:59]} Rxd3 {[%clk 00:17:15]} {[%emt 00:00:08]} 36. cxd3 {[%clk 00:05:26]}
{[%emt 00:00:01]} Rc3 {[%clk 00:17:19]} {[%emt 00:00:02]} 37. Rd1 {[%clk
00:05:28]} {[%emt 00:00:02]} Ra3 {[%clk 00:17:22]} {[%emt 00:00:02]} 38. Rd2
{[%clk 00:05:31]} {[%emt 00:00:02]} e4 {[%clk 00:17:16]} {[%emt 00:00:11]} 39.
dxe4 {[%clk 00:05:23]} {[%emt 00:00:12]} dxe4 {[%clk 00:17:20]} {[%emt
00:00:02]} 40. Re2 {[%clk 00:05:25]} {[%emt 00:00:02]} Rxf3+ {[%clk 00:17:17]}
{[%emt 00:00:10]} 41. Kg2 {[%clk 00:05:25]} {[%emt 00:00:03]} Kf5 {[%clk
00:17:16]} {[%emt 00:00:07]} 42. Kg1 {[%clk 00:05:07]} {[%emt 00:00:21]} Kf4
{[%clk 00:17:07]} {[%emt 00:00:16]} 43. Rb2 {[%clk 00:04:54]} {[%emt 00:00:17]}
g4 {[%clk 00:17:05]} {[%emt 00:00:09]} 44. Rb4 {[%clk 00:04:32]} {[%emt
00:00:22]} Rc3 {[%clk 00:17:07]} {[%emt 00:00:07]} 45. Rb1 {[%clk 00:04:28]}
{[%emt 00:00:08]} g3 {[%clk 00:17:07]} {[%emt 00:00:06]} 46. Rf1+ {[%clk
00:04:30]} {[%emt 00:00:02]} Rf3 {[%clk 00:17:09]} {[%emt 00:00:04]} 47. Rb1
{[%clk 00:04:19]} {[%emt 00:00:15]} Rf2 {[%clk 00:17:10]} {[%emt 00:00:05]} 48.
Rb3 {[%clk 00:03:32]} {[%emt 00:00:49]} Rxa2 {[%clk 00:17:07]} {[%emt
00:00:11]} 49. Rb1 {[%clk 00:03:30]} {[%emt 00:00:06]} Kf3 {[%clk 00:17:08]}
{[%emt 00:00:05]} 50. Rf1+ {[%clk 00:03:27]} {[%emt 00:00:07]} Rf2 {[%clk
00:16:43]} {[%emt 00:00:31]} 51. Ra1 {[%clk 00:03:21]} {[%emt 00:00:11]} g2
{[%clk 00:16:38]} {[%emt 00:00:10]} 52. Ra3+ {[%clk 00:03:23]} {[%emt
00:00:03]} e3 {[%clk 00:16:42]} {[%emt 00:00:01]} 53. Ra1 {[%clk 00:02:45]}
{[%emt 00:00:42]} Rf1+ {[%clk 00:16:45]} {[%emt 00:00:02]} 54. Rxf1+ {[%clk
00:02:43]} {[%emt 00:00:08]} gxf1=Q+ {[%clk 00:16:46]} {[%emt 00:00:04]} 55.
Kxf1 {[%clk 00:02:46]} {[%emt 00:00:01]} a5 {[%clk 00:16:48]} {[%emt 00:00:05]}
56. Ke1 {[%clk 00:02:47]} {[%emt 00:00:03]} a4 {[%clk 00:16:47]} {[%emt
00:00:06]} 57. Kd1 {[%clk 00:02:50]} {[%emt 00:00:01]} e2+ {[%clk 00:16:51]}
{[%emt 00:00:02]} 58. Kc2 {[%clk 00:02:54]} {[%emt 00:00:01]} e1=Q {[%clk
00:16:53]} {[%emt 00:00:03]} 59. Kd3 {[%clk 00:02:55]} {[%emt 00:00:03]} Qe4+
{[%clk 00:16:52]} {[%emt 00:00:07]} 60. Kc3 {[%clk 00:02:56]} {[%emt 00:00:03]}
b5 {[%clk 00:16:54]} {[%emt 00:00:04]} 61. Kb2 {[%clk 00:02:58]} {[%emt
00:00:03]} Qc4 {[%clk 00:16:52]} {[%emt 00:00:07]} 62. Ka1 {[%clk 00:02:51]}
{[%emt 00:00:12]} Qb4 {[%clk 00:16:48]} {[%emt 00:00:09]} 63. Ka2 {[%clk
00:02:53]} {[%emt 00:00:03]} a3 {[%clk 00:16:49]} {[%emt 00:00:04]} 64. Ka1
{[%clk 00:02:56]} {[%emt 00:00:01]} Qb2# {[%clk 00:16:53]} {[%emt 00:00:02]}
0-1

[Event "MCR rapid mládeže 2023 U16"]
[Site "Harachov, Czech Republic"]
[Date "2023.09.10"]
[Round "8.32"]
[White "Zelenka, Tomas"]
[Black "Zika, Miroslav"]
[Result "1/2-1/2"]
[TimeControl "20min+5s/move"]
[WhiteElo "1457"]
[BlackElo "1199"]

1. e4 {[%clk 00:20:08]} {[%emt 00:00:01]} e5 {[%clk 00:20:08]} {[%emt
00:00:02]} 2. Bc4 {[%clk 00:20:09]} {[%emt 00:00:04]} Nc6 {[%clk 00:20:10]}
{[%emt 00:00:03]} 3. Nc3 {[%clk 00:20:13]} {[%emt 00:00:02]} Nf6 {[%clk
00:20:12]} {[%emt 00:00:03]} 4. d3 {[%clk 00:20:16]} {[%emt 00:00:01]} Bc5
{[%clk 00:20:15]} {[%emt 00:00:02]} 5. Nge2 {[%clk 00:20:07]} {[%emt 00:00:13]}
d6 {[%clk 00:20:17]} {[%emt 00:00:05]} 6. O-O {[%clk 00:20:09]} {[%emt
00:00:02]} Be6 {[%clk 00:20:18]} {[%emt 00:00:04]} 7. Bb3 {[%clk 00:20:09]}
{[%emt 00:00:05]} Qd7 {[%clk 00:20:13]} {[%emt 00:00:11]} 8. Kh1 {[%clk
00:20:04]} {[%emt 00:00:09]} O-O {[%clk 00:20:02]} {[%emt 00:00:16]} 9. f4
{[%clk 00:20:06]} {[%emt 00:00:03]} exf4 {[%clk 00:20:02]} {[%emt 00:00:06]} 10.
Bxf4 {[%clk 00:20:00]} {[%emt 00:00:10]} Bg4 {[%clk 00:19:33]} {[%emt
00:00:34]} 11. Ba4 {[%clk 00:19:46]} {[%emt 00:00:18]} Bxe2 {[%clk 00:19:12]}
{[%emt 00:00:27]} 12. Qxe2 {[%clk 00:19:41]} {[%emt 00:00:10]} Nd4 {[%clk
00:18:37]} {[%emt 00:00:40]} 13. Qe1 {[%clk 00:18:09]} {[%emt 00:01:34]} Qe7
{[%clk 00:18:31]} {[%emt 00:00:14]} 14. Bg5 {[%clk 00:17:51]} {[%emt 00:00:23]}
Qe5 {[%clk 00:18:12]} {[%emt 00:00:25]} 15. Bxf6 {[%clk 00:17:33]} {[%emt
00:00:23]} gxf6 {[%clk 00:18:12]} {[%emt 00:00:04]} 16. Nd5 {[%clk 00:17:35]}
{[%emt 00:00:03]} f5 {[%clk 00:18:00]} {[%emt 00:00:18]} 17. c3 {[%clk
00:17:29]} {[%emt 00:00:11]} Nc6 {[%clk 00:17:44]} {[%emt 00:00:21]} 18. d4
{[%clk 00:17:11]} {[%emt 00:00:22]} Nxd4 {[%clk 00:17:40]} {[%emt 00:00:09]} 19.
cxd4 {[%clk 00:17:12]} {[%emt 00:00:05]} Qxd4 {[%clk 00:17:34]} {[%emt
00:00:10]} 20. Qg3+ {[%clk 00:16:58]} {[%emt 00:00:18]} Kh8 {[%clk 00:17:22]}
{[%emt 00:00:18]} 21. Bc2 {[%clk 00:16:46]} {[%emt 00:00:15]} fxe4 {[%clk
00:17:12]} {[%emt 00:00:17]} 22. Nf6 {[%clk 00:16:43]} {[%emt 00:00:08]} Rg8
{[%clk 00:16:50]} {[%emt 00:00:27]} 23. Nxg8 {[%clk 00:16:27]} {[%emt
00:00:21]} Rxg8 {[%clk 00:16:54]} {[%emt 00:00:02]} 24. Qh4 {[%clk 00:16:21]}
{[%emt 00:00:09]} Qg7 {[%clk 00:16:46]} {[%emt 00:00:14]} 25. Bxe4 {[%clk
00:16:12]} {[%emt 00:00:14]} c6 {[%clk 00:16:37]} {[%emt 00:00:15]} 26. Rf6
{[%clk 00:15:32]} {[%emt 00:00:45]} Be3 {[%clk 00:16:14]} {[%emt 00:00:27]} 27.
Qh3 {[%clk 00:15:06]} {[%emt 00:00:28]} d5 {[%clk 00:15:24]} {[%emt 00:00:59]}
28. Bc2 {[%clk 00:14:27]} {[%emt 00:00:43]} Bg5 {[%clk 00:14:26]} {[%emt
00:01:04]} 29. Rf2 {[%clk 00:14:13]} {[%emt 00:00:13]} f6 {[%clk 00:13:28]}
{[%emt 00:01:08]} 30. Re1 {[%clk 00:13:45]} {[%emt 00:00:32]} d4 {[%clk
00:12:43]} {[%emt 00:00:51]} 31. Rfe2 {[%clk 00:13:21]} {[%emt 00:00:28]} Be3
{[%clk 00:12:32]} {[%emt 00:00:18]} 32. Rf1 {[%clk 00:12:10]} {[%emt 00:01:14]}
c5 {[%clk 00:12:06]} {[%emt 00:00:33]} 33. Bd3 {[%clk 00:11:24]} {[%emt
00:00:50]} b6 {[%clk 00:11:50]} {[%emt 00:00:20]} 34. Rf5 {[%clk 00:10:37]}
{[%emt 00:00:46]} Bg5 {[%clk 00:11:33]} {[%emt 00:00:29]} 35. Rf3 {[%clk
00:09:21]} {[%emt 00:01:20]} h6 {[%clk 00:10:11]} {[%emt 00:01:28]} 1/2-1/2

[Event "MCR rapid mládeže 2023 U16"]
[Site "Harachov, Czech Republic"]
[Date "2023.09.10"]
[Round "8.33"]
[White "Vo, Daniel"]
[Black "Mauric, Jan"]
[Result "1-0"]
[TimeControl "20min+5s/move"]
[WhiteElo "1445"]
[BlackElo "1260"]

1. e4 {[%clk 00:20:07]} {[%emt 00:00:02]} e6 {[%clk 00:20:08]} {[%emt
00:00:03]} 2. d4 {[%clk 00:20:10]} {[%emt 00:00:02]} b6 {[%clk 00:20:12]}
{[%emt 00:00:01]} 3. Nc3 {[%clk 00:20:12]} {[%emt 00:00:02]} Bb7 {[%clk
00:20:16]} {[%emt 00:00:01]} 4. Nf3 {[%clk 00:20:10]} {[%emt 00:00:07]} Nf6
{[%clk 00:19:48]} {[%emt 00:00:33]} 5. Bd3 {[%clk 00:19:46]} {[%emt 00:00:28]}
c5 {[%clk 00:19:24]} {[%emt 00:00:30]} 6. d5 {[%clk 00:19:40]} {[%emt
00:00:11]} exd5 {[%clk 00:19:26]} {[%emt 00:00:02]} 7. exd5 {[%clk 00:19:43]}
{[%emt 00:00:02]} Nxd5 {[%clk 00:19:14]} {[%emt 00:00:16]} 8. Nxd5 {[%clk
00:19:37]} {[%emt 00:00:11]} Bxd5 {[%clk 00:19:18]} {[%emt 00:00:02]} 9. O-O
{[%clk 00:19:38]} {[%emt 00:00:02]} Be7 {[%clk 00:19:09]} {[%emt 00:00:16]} 10.
Re1 {[%clk 00:19:41]} {[%emt 00:00:01]} O-O {[%clk 00:19:12]} {[%emt 00:00:03]}
11. Bxh7+ {[%clk 00:19:36]} {[%emt 00:00:10]} Kxh7 {[%clk 00:18:40]} {[%emt
00:00:37]} 12. Qxd5 {[%clk 00:19:39]} {[%emt 00:00:02]} Nc6 {[%clk 00:18:35]}
{[%emt 00:00:11]} 13. Bg5 {[%clk 00:18:43]} {[%emt 00:01:00]} f6 {[%clk
00:14:20]} {[%emt 00:04:20]} 14. Bf4 {[%clk 00:17:55]} {[%emt 00:00:45]} g5
{[%clk 00:13:35]} {[%emt 00:00:58]} 15. Qf5+ {[%clk 00:17:04]} {[%emt
00:00:55]} Kg7 {[%clk 00:13:29]} {[%emt 00:00:11]} 16. Bg3 {[%clk 00:16:01]}
{[%emt 00:01:07]} Rf7 {[%clk 00:10:31]} {[%emt 00:03:05]} 17. h4 {[%clk
00:15:32]} {[%emt 00:00:33]} d5 {[%clk 00:08:41]} {[%emt 00:01:56]} 18. h5
{[%clk 00:15:00]} {[%emt 00:00:36]} Kh8 {[%clk 00:08:13]} {[%emt 00:00:33]} 19.
Nxg5 {[%clk 00:14:23]} {[%emt 00:00:42]} Rg7 {[%clk 00:07:43]} {[%emt
00:00:36]} 20. Ne6 {[%clk 00:14:08]} {[%emt 00:00:20]} Nd4 {[%clk 00:07:41]}
{[%emt 00:00:07]} 21. Nxd4 {[%clk 00:13:51]} cxd4 {[%clk 00:07:45]} 22. h6
{[%clk 00:13:52]} {[%emt 00:00:04]} Rh7 {[%clk 00:07:38]} {[%emt 00:00:14]} 23.
Bf4 {[%clk 00:13:25]} {[%emt 00:00:30]} Bd6 {[%clk 00:07:07]} {[%emt 00:00:37]}
24. Bd2 {[%clk 00:13:00]} {[%emt 00:00:30]} Bf8 {[%clk 00:06:04]} {[%emt
00:01:08]} 25. Qf4 {[%clk 00:12:35]} {[%emt 00:00:28]} Bxh6 {[%clk 00:05:50]}
{[%emt 00:00:20]} 26. Qxd4 {[%clk 00:12:31]} {[%emt 00:00:09]} Bxd2 {[%clk
00:05:39]} {[%emt 00:00:16]} 27. Qxd2 {[%clk 00:12:35]} {[%emt 00:00:01]} Qd6
{[%clk 00:05:33]} {[%emt 00:00:12]} 28. g3 {[%clk 00:12:16]} {[%emt 00:00:24]}
Qc6 {[%clk 00:05:29]} {[%emt 00:00:09]} 29. Qd4 {[%clk 00:12:07]} {[%emt
00:00:14]} Rf8 {[%clk 00:05:12]} {[%emt 00:00:22]} 30. Rad1 {[%clk 00:11:43]}
{[%emt 00:00:28]} Rh5 {[%clk 00:04:51]} {[%emt 00:00:27]} 31. Qg4 {[%clk
00:11:17]} {[%emt 00:00:30]} Rh6 {[%clk 00:04:25]} {[%emt 00:00:32]} 32. c3
{[%clk 00:10:58]} {[%emt 00:00:25]} d4 {[%clk 00:04:16]} {[%emt 00:00:14]} 33.
Qe4 {[%clk 00:10:53]} {[%emt 00:00:09]} Qxe4 {[%clk 00:03:38]} {[%emt
00:00:43]} 34. Rxe4 {[%clk 00:10:54]} {[%emt 00:00:03]} dxc3 {[%clk 00:03:41]}
{[%emt 00:00:03]} 35. bxc3 {[%clk 00:10:58]} Rh7 {[%clk 00:03:15]} {[%emt
00:00:30]} 36. Red4 {[%clk 00:10:52]} {[%emt 00:00:11]} Rhf7 {[%clk 00:02:44]}
{[%emt 00:00:38]} 37. Rd7 {[%clk 00:10:52]} {[%emt 00:00:04]} Kg7 {[%clk
00:02:42]} {[%emt 00:00:08]} 38. Kg2 {[%clk 00:10:39]} {[%emt 00:00:17]} Rxd7
{[%clk 00:02:29]} {[%emt 00:00:19]} 39. Rxd7+ {[%clk 00:10:43]} Rf7 {[%clk
00:02:33]} 40. Rxf7+ {[%clk 00:10:38]} {[%emt 00:00:10]} Kxf7 {[%clk 00:02:24]}
{[%emt 00:00:15]} 41. Kf3 {[%clk 00:10:42]} {[%emt 00:00:01]} Ke6 {[%clk
00:02:05]} {[%emt 00:00:24]} 42. Ke4 {[%clk 00:10:46]} {[%emt 00:00:01]} f5+
{[%clk 00:02:06]} {[%emt 00:00:05]} 43. Kd4 {[%clk 00:10:50]} a6 {[%clk
00:02:05]} {[%emt 00:00:06]} 44. a4 {[%clk 00:10:50]} {[%emt 00:00:04]} Kd6
{[%clk 00:02:06]} {[%emt 00:00:05]} 45. f3 {[%clk 00:10:49]} {[%emt 00:00:06]}
Ke6 {[%clk 00:02:02]} {[%emt 00:00:09]} 46. g4 {[%clk 00:10:48]} {[%emt
00:00:05]} fxg4 {[%clk 00:01:48]} {[%emt 00:00:19]} 47. fxg4 {[%clk 00:10:52]}
Kd6 {[%clk 00:01:44]} {[%emt 00:00:10]} 48. c4 {[%clk 00:10:46]} {[%emt
00:00:11]} a5 {[%clk 00:01:26]} {[%emt 00:00:22]} 49. g5 {[%clk 00:10:48]}
{[%emt 00:00:02]} Ke6 {[%clk 00:01:30]} {[%emt 00:00:02]} 50. g6 {[%clk
00:10:52]} {[%emt 00:00:01]} Kf6 {[%clk 00:01:32]} {[%emt 00:00:04]} 51. Kd5
{[%clk 00:10:56]} {[%emt 00:00:01]} Kxg6 {[%clk 00:01:35]} {[%emt 00:00:01]} 52.
Kc6 {[%clk 00:11:01]} Kf6 {[%clk 00:01:39]} {[%emt 00:00:02]} 53. Kxb6 {[%clk
00:11:05]} {[%emt 00:00:01]} Ke6 {[%clk 00:01:42]} {[%emt 00:00:01]} 54. Kxa5
{[%clk 00:11:08]} {[%emt 00:00:02]} Kd7 {[%clk 00:01:43]} {[%emt 00:00:03]} 55.
Kb6 {[%clk 00:11:12]} {[%emt 00:00:03]} Kc8 {[%clk 00:01:47]} {[%emt 00:00:01]}
56. Kc6 {[%clk 00:11:16]} Kb8 {[%clk 00:01:51]} {[%emt 00:00:01]} 57. c5 {[%clk
00:11:21]} Kc8 {[%clk 00:01:54]} {[%emt 00:00:03]} 58. a5 {[%clk 00:11:25]} Kb8
{[%clk 00:01:58]} {[%emt 00:00:02]} 59. a6 {[%clk 00:11:29]} {[%emt 00:00:01]}
Ka7 {[%clk 00:01:55]} {[%emt 00:00:07]} 60. Kc7 {[%clk 00:11:25]} {[%emt
00:00:09]} Kxa6 {[%clk 00:01:35]} {[%emt 00:00:25]} 61. Kd7 {[%clk 00:11:26]}
{[%emt 00:00:04]} Kb7 {[%clk 00:01:39]} {[%emt 00:00:02]} 62. c6+ {[%clk
00:11:30]} {[%emt 00:00:01]} Kb8 {[%clk 00:01:43]} 63. c7+ {[%clk 00:11:34]}
{[%emt 00:00:01]} 1-0